bitfinex/quotes_BTCUSD_20251113
["timestamp","ask_amount","ask_price","bid_price","bid_amount"]
[1763020375258,0.1968235,103550.0,103540.0,0.26470206]
[1763020375464,0.1968235,103550.0,103540.0,0.6874271]
[1763020376031,0.1968235,103550.0,103540.0,0.7074271]
[1763020377228,0.1968235,103550.0,103540.0,0.28470206]
[1763020377663,0.1968235,103550.0,103540.0,0.26470206]
[1763020377851,0.1968235,103550.0,103540.0,0.28470206]
[1763020378063,0.1968235,103550.0,103540.0,0.26470206]
[1763020378353,0.1968235,103550.0,103540.0,0.28470206]
[1763020380337,0.1968235,103550.0,103540.0,0.05154]
[1763020380744,0.1968235,103550.0,103540.0,0.26470206]
[1763020380948,0.1968235,103550.0,103540.0,0.28470206]
[1763020381154,0.0036801,103550.0,103540.0,0.7074271]
[1763020381363,0.0036801,103550.0,103540.0,0.28470206]
[1763020381577,0.0036801,103550.0,103540.0,1.0304271]
[1763020382422,0.0026801,103550.0,103540.0,1.0304271]
[1763020382627,0.0016801,103550.0,103540.0,1.0304271]
[1763020382832,0.0016801,103550.0,103540.0,1.0314271]
[1763020384090,0.0016801,103550.0,103540.0,1.0324271]
[1763020384711,0.0016801,103550.0,103540.0,1.1341271]
[1763020384933,0.0016801,103550.0,103540.0,1.0324271]
[1763020385144,0.0016801,103550.0,103540.0,0.9924271]
[1763020385357,0.0016801,103550.0,103540.0,1.0324271]
[1763020386314,0.0016801,103550.0,103540.0,0.9924271]
[1763020386514,0.0016801,103550.0,103540.0,1.0324271]
[1763020386967,0.0016801,103550.0,103540.0,1.11336072]
[1763020387115,0.0016801,103550.0,103540.0,1.07336072]
[1763020387356,0.0016801,103550.0,103540.0,1.11336072]
[1763020388045,0.0016801,103550.0,103540.0,0.93745139]
[1763020388260,0.0016801,103550.0,103540.0,0.97745139]
[1763020392750,0.0016801,103550.0,103540.0,0.72562206]
[1763020392956,0.1948235,103550.0,103540.0,0.05354]
[1763020393154,0.46754283,103550.0,103540.0,0.022]
[1763020393414,0.46754283,103550.0,103540.0,0.0648]
[1763020393757,0.48112283,103550.0,103540.0,0.021]
[1763020394112,0.48112283,103550.0,103540.0,0.0638]
[1763020394479,0.48112283,103550.0,103540.0,0.0628]
[1763020394684,0.2157135,103550.0,103540.0,0.25598206]
[1763020394906,0.46754283,103550.0,103540.0,0.27596206]
[1763020395114,0.46754283,103550.0,103540.0,0.25596206]
[1763020395325,0.46754283,103550.0,103540.0,0.27596206]
[1763020395927,0.2157135,103550.0,103540.0,0.27596206]
[1763020396155,0.1948235,103550.0,103540.0,0.32430206]
[1763020396688,0.0016801,103550.0,103540.0,0.32430206]
[1763020397445,0.1948235,103550.0,103540.0,0.32430206]
[1763020398479,0.0016801,103550.0,103540.0,0.32430206]
[1763020398701,0.1948235,103550.0,103540.0,0.32430206]
[1763020402141,0.0016801,103550.0,103540.0,0.32430206]
[1763020402549,0.0016801,103550.0,103540.0,0.30430206]
[1763020402777,0.48112283,103550.0,103530.0,0.03463]
[1763020402993,0.44499139,103540.0,103530.0,0.05463]
[1763020403200,0.19316206,103540.0,103530.0,0.07743]
[1763020403404,0.19316206,103540.0,103530.0,0.11745]
[1763020403607,0.19316206,103540.0,103530.0,0.33895072]
[1763020403972,0.19316206,103540.0,103530.0,0.14677]
[1763020404182,0.19316206,103540.0,103530.0,0.12677]
[1763020404383,0.19316206,103540.0,103530.0,0.12577]
[1763020404583,0.19316206,103540.0,103530.0,0.33895072]
[1763020404823,0.19316206,103540.0,103530.0,0.34095072]
[1763020405032,0.19316206,103540.0,103530.0,0.29263072]
[1763020405234,0.19316206,103540.0,103530.0,0.12777]
[1763020405568,0.19316206,103540.0,103530.0,0.14777]
[1763020407519,0.19316206,103540.0,103530.0,0.12777]
[1763020407725,0.19316206,103540.0,103530.0,0.29263072]
[1763020407932,0.19316206,103540.0,103530.0,0.31263072]
[1763020408198,0.00097018,103540.0,103530.0,0.30095072]
[1763020408405,0.00097018,103540.0,103530.0,0.34095072]
[1763020413135,0.19413224,103540.0,103530.0,0.34095072]
[1763020413275,0.00097018,103540.0,103530.0,0.34095072]
[1763020413685,0.19413224,103540.0,103530.0,0.34095072]
[1763020413948,0.00097018,103540.0,103530.0,0.34095072]
[1763020414119,0.00097018,103540.0,103530.0,0.59278005]
[1763020414525,0.00097018,103540.0,103530.0,0.25261072]
[1763020414724,0.00595018,103540.0,103530.0,0.31940072]
[1763020414923,0.00595018,103540.0,103530.0,0.33940072]
[1763020415146,0.19911224,103540.0,103530.0,0.31940072]
[1763020415489,0.19911224,103540.0,103530.0,0.33940072]
[1763020416094,0.00595018,103540.0,103530.0,0.33940072]
[1763020416298,0.19413224,103540.0,103530.0,0.33940072]
[1763020416984,0.00097018,103540.0,103530.0,0.59123005]
[1763020420558,0.00097018,103540.0,103530.0,0.91423005]
[1763020421138,0.00097018,103540.0,103530.0,1.03015005]
[1763020422782,0.00097018,103540.0,103530.0,0.77832072]
[1763020422979,0.00097018,103540.0,103530.0,1.44331212]
[1763020424259,0.00097018,103540.0,103530.0,2.10830352]
[1763020424493,0.00097018,103540.0,103530.0,2.12453739]
[1763020424902,0.00097018,103540.0,103530.0,0.79455459]
[1763020425108,0.00097018,103540.0,103530.0,1.29826595]
[1763020426456,0.00097018,103540.0,103530.0,1.04641027]
[1763020430978,0.00097018,103540.0,103530.0,0.79455459]
[1763020431157,0.00097018,103540.0,103530.0,1.04641027]
[1763020433704,0.00097018,103540.0,103530.0,0.41532072]
[1763020433910,0.00097018,103540.0,103530.0,0.7071764]
[1763020434330,0.00097018,103540.0,103530.0,0.45532072]
[1763020435822,0.19413224,103540.0,103530.0,0.45532072]
[1763020436933,0.19413224,103540.0,103530.0,0.43532072]
[1763020437144,0.19413224,103540.0,103530.0,0.45532072]
[1763020437330,0.19413224,103540.0,103530.0,0.43532072]
[1763020437656,0.19413224,103540.0,103530.0,0.06342]
[1763020437868,0.47023792,103540.0,103530.0,0.002]
[1763020437989,0.7220936,103540.0,103530.0,0.002]
[1763020439098,1.08851234,103540.0,103530.0,0.04276]
[1763020439319,0.58480098,103540.0,103530.0,0.04276]
[1763020439527,1.08851234,103540.0,103530.0,0.04276]
[1763020439741,0.78371792,103540.0,103530.0,0.05598]
[1763020439956,0.78271792,103540.0,103530.0,0.05598]
[1763020440161,0.78271792,103540.0,103530.0,0.07598]
[1763020440597,0.45971792,103540.0,103530.0,0.07598]
[1763020440814,0.46071792,103540.0,103530.0,0.28916072]
[1763020441012,0.46071792,103540.0,103530.0,0.25594072]
[1763020441216,1.08851234,103540.0,103530.0,0.04276]
[1763020441422,1.09051234,103540.0,103530.0,0.04276]
[1763020441649,1.09251234,103540.0,103530.0,0.06276]
[1763020441844,0.58880098,103540.0,103530.0,0.06276]
[1763020442047,1.09251234,103540.0,103530.0,0.06276]
[1763020443084,0.83013666,103540.0,103530.0,0.04276]
[1763020443317,0.83013666,103540.0,103530.0,0.06276]
[1763020443661,0.83013666,103540.0,103530.0,0.08276]
[1763020444065,0.83013666,103540.0,103530.0,0.04276]
[1763020444263,0.83013666,103540.0,103530.0,0.06276]
[1763020444474,0.83013666,103540.0,103530.0,0.08276]
[1763020445476,0.83013666,103540.0,103530.0,0.06276]
[1763020446569,0.83013666,103540.0,103530.0,0.08276]
[1763020447020,0.87400909,103540.0,103530.0,0.06276]
[1763020447214,0.87400909,103540.0,103530.0,0.08276]
[1763020447416,0.87400909,103540.0,103530.0,0.06276]
[1763020447735,1.1697372,103540.0,103530.0,0.04276]
[1763020448011,0.87400909,103540.0,103530.0,0.06276]
[1763020448225,1.1697372,103540.0,103530.0,0.06276]
[1763020448835,1.1697372,103540.0,103530.0,0.08276]
[1763020449383,1.1697372,103540.0,103530.0,0.06276]
[1763020449582,1.1697372,103540.0,103530.0,0.04276]
[1763020449809,1.1796272,103540.0,103530.0,0.06276]
[1763020450700,1.1796272,103540.0,103530.0,0.04276]
[1763020451086,1.1796272,103540.0,103530.0,0.06276]
[1763020451291,0.05159892,103540.0,103530.0,0.09395]
[1763020451494,0.50696035,103540.0,103530.0,0.07395]
[1763020451807,0.50696035,103540.0,103530.0,0.07612]
[1763020452024,0.50696035,103540.0,103530.0,0.05612]
[1763020452191,0.50696035,103540.0,103530.0,0.07612]
[1763020452583,0.50696035,103540.0,103530.0,0.09612]
[1763020452779,0.50696035,103540.0,103530.0,0.07612]
[1763020452982,0.50696035,103540.0,103530.0,0.28713072]
[1763020453399,0.49707035,103540.0,103530.0,0.31530072]
[1763020453826,0.49707035,103540.0,103530.0,0.33530072]
[1763020454005,0.49707035,103540.0,103530.0,0.31530072]
[1763020454203,0.49707035,103540.0,103530.0,0.33530072]
[1763020454421,0.49707035,103540.0,103530.0,0.09395]
[1763020454627,0.49707035,103540.0,103530.0,0.11395]
[1763020455986,0.49707035,103540.0,103530.0,0.04]
[1763020455987,0.81257846,103540.0,103530.0,0.04]
[1763020456189,0.81257846,103540.0,103500.0,0.01493]
[1763020456190,0.19321804,103510.0,103500.0,0.23633559]
[1763020456410,0.19321804,103510.0,103500.0,0.02]
[1763020456411,0.50551615,103510.0,103500.0,0.02]
[1763020456583,0.19323671,103500.0,103490.0,0.04153]
[1763020456788,0.19323671,103500.0,103490.0,0.25478538]
[1763020456999,0.19323671,103500.0,103490.0,0.07936]
[1763020457201,0.19323671,103500.0,103490.0,0.29261538]
[1763020457806,0.20014065,103510.0,103500.0,0.19323671]
[1763020458027,0.20014065,103510.0,103500.0,0.23106671]
[1763020458212,0.00024261,103510.0,103500.0,0.27923671]
[1763020459284,0.19346065,103510.0,103500.0,0.25923671]
[1763020459482,0.19346065,103510.0,103500.0,0.23923671]
[1763020459700,0.20014065,103510.0,103500.0,0.066]
[1763020459908,0.20014065,103510.0,103500.0,0.01883]
[1763020460107,0.21003065,103510.0,103500.0,0.021]
[1763020460544,0.63264309,103510.0,103500.0,0.041]
[1763020460725,0.63264309,103510.0,103500.0,0.021]
[1763020461101,0.21003065,103510.0,103500.0,0.021]
[1763020461731,0.20014065,103510.0,103500.0,0.23206671]
[1763020462079,0.19346065,103510.0,103500.0,0.28023671]
[1763020462932,0.00024261,103510.0,103500.0,0.28023671]
[1763020463441,0.19346065,103510.0,103500.0,0.28023671]
[1763020463862,0.00024261,103510.0,103500.0,0.28023671]
[1763020464922,0.00024261,103510.0,103500.0,0.70284915]
[1763020465513,0.00024261,103510.0,103500.0,0.28023671]
[1763020465749,0.00024261,103510.0,103500.0,0.70284915]
[1763020466295,0.00024261,103510.0,103500.0,0.087]
[1763020466469,0.00024261,103510.0,103470.0,0.00113415]
[1763020466470,0.19327406,103480.0,103470.0,0.00113415]
[1763020466696,1.09073768,103480.0,103470.0,0.00127434]
[1763020466976,1.42255768,103480.0,103470.0,0.00127434]
[1763020467203,0.99994524,103480.0,103470.0,0.00127434]
[1763020467420,0.99112524,103480.0,103470.0,0.00127434]
[1763020467644,0.99112524,103480.0,103470.0,0.00427434]
[1763020467853,1.02693486,103480.0,103470.0,0.00427434]
[1763020468292,0.99212524,103480.0,103470.0,0.00427434]
[1763020468504,0.99212524,103480.0,103470.0,0.00127434]
[1763020468718,1.00094524,103480.0,103470.0,0.00127434]
[1763020468940,1.00194524,103480.0,103470.0,0.00127434]
[1763020472892,0.5793328,103480.0,103470.0,0.00127434]
[1763020473109,0.99312524,103480.0,103470.0,0.00127434]
[1763020474001,0.99312524,103480.0,103470.0,0.02127434]
[1763020475241,0.99312524,103480.0,103470.0,0.00127434]
[1763020475242,1.42455768,103480.0,103470.0,0.00127434]
[1763020475448,1.00194524,103480.0,103470.0,0.00127434]
[1763020477506,0.99312524,103480.0,103470.0,0.00127434]
[1763020478278,0.19527406,103480.0,103470.0,0.03349434]
[1763020478532,0.19527406,103480.0,103470.0,0.25477708]
[1763020478729,0.19527406,103480.0,103470.0,0.27477708]
[1763020479032,0.19527406,103480.0,103470.0,0.08148434]
[1763020479264,0.19427406,103480.0,103470.0,0.08148434]
[1763020479835,0.19327406,103480.0,103470.0,0.05349434]
[1763020480252,0.6168865,103480.0,103470.0,0.05349434]
[1763020480459,0.6257065,103480.0,103470.0,0.00127434]
[1763020480677,0.67894524,103480.0,103470.0,0.00127434]
[1763020480890,1.10155768,103480.0,103470.0,0.00127434]
[1763020481105,0.67894524,103480.0,103470.0,0.00127434]
[1763020483576,0.67012524,103480.0,103470.0,0.00127434]
[1763020484844,0.002,103480.0,103470.0,0.26092708]
[1763020485443,0.19527406,103480.0,103470.0,0.04763434]
[1763020485644,0.19527406,103480.0,103470.0,0.00127434]
[1763020485645,0.6355265,103480.0,103470.0,0.00127434]
[1763020485856,0.67894524,103480.0,103470.0,0.00127434]
[1763020486066,0.67894524,103480.0,103470.0,0.02127434]
[1763020486244,0.67894524,103480.0,103470.0,0.00127434]
[1763020487017,0.67012524,103480.0,103470.0,0.02127434]
[1763020487637,0.67012524,103480.0,103470.0,0.00127434]
[1763020487972,0.67012524,103480.0,103470.0,0.02127434]
[1763020488173,0.67894524,103480.0,103470.0,0.00127434]
[1763020489621,0.67012524,103480.0,103470.0,0.21293708]
[1763020489824,0.67012524,103480.0,103470.0,0.01964434]
[1763020490038,0.67012524,103480.0,103470.0,0.03964434]
[1763020490240,0.67012524,103480.0,103470.0,0.00127434]
[1763020490949,0.67012524,103480.0,103470.0,0.21456708]
[1763020491102,0.67012524,103480.0,103470.0,0.00127434]
[1763020491310,0.67012524,103480.0,103470.0,0.02127434]
[1763020491874,0.67012524,103480.0,103470.0,0.21456708]
[1763020492910,0.67012524,103480.0,103470.0,0.19456708]
[1763020493321,0.67012524,103480.0,103470.0,0.21293708]
[1763020493565,0.66130524,103480.0,103470.0,0.21293708]
[1763020493780,0.002,103480.0,103470.0,0.26092708]
[1763020494348,0.002,103480.0,103470.0,0.24092708]
[1763020494526,0.002,103480.0,103470.0,0.26092708]
[1763020494755,0.002,103480.0,103470.0,0.24092708]
[1763020494955,0.002,103480.0,103470.0,0.26092708]
[1763020496593,0.002,103480.0,103470.0,0.28082708]
[1763020497189,0.002,103480.0,103470.0,0.26082708]
[1763020497414,0.002,103480.0,103470.0,0.24092708]
[1763020497609,0.002,103480.0,103470.0,0.28082708]
[1763020498325,0.002,103480.0,103470.0,0.24092708]
[1763020498507,0.002,103480.0,103470.0,0.28082708]
[1763020498704,0.002,103480.0,103470.0,0.25969293]
[1763020498912,0.002,103480.0,103470.0,0.27969293]
[1763020499106,0.19527406,103480.0,103470.0,0.27969293]
[1763020499592,0.002,103480.0,103470.0,0.25969293]
[1763020499718,0.19527406,103480.0,103470.0,0.27969293]
[1763020499929,0.002,103480.0,103470.0,0.27969293]
[1763020500324,0.002,103480.0,103470.0,0.25969293]
[1763020500546,0.002,103480.0,103470.0,0.27969293]
[1763020500838,0.19527406,103480.0,103470.0,0.27969293]
[1763020501790,0.002,103480.0,103470.0,0.23979293]
[1763020501998,0.002,103480.0,103470.0,0.66240537]
[1763020502207,0.002,103480.0,103470.0,0.70230537]
[1763020502749,0.002,103480.0,103470.0,0.27969293]
[1763020503067,0.42461244,103480.0,103470.0,0.23170293]
[1763020503815,0.002,103480.0,103470.0,0.25170293]
[1763020504220,0.002,103480.0,103470.0,0.27747293]
[1763020505201,0.002,103480.0,103470.0,0.66018537]
[1763020505402,0.002,103480.0,103470.0,0.70008537]
[1763020505983,0.002,103480.0,103470.0,1.02308537]
[1763020506183,0.001,103480.0,103470.0,0.98318537]
[1763020506388,0.001,103480.0,103470.0,1.02308537]
[1763020506590,0.001,103480.0,103470.0,1.02508537]
[1763020506977,0.00024261,103510.0,103500.0,0.23313671]
[1763020507137,0.00024261,103510.0,103500.0,0.25039671]
[1763020507345,0.00024261,103510.0,103500.0,0.27616671]
[1763020508230,0.00224261,103510.0,103500.0,0.27616671]
[1763020509018,0.00224261,103510.0,103500.0,0.52822854]
[1763020509224,0.00224261,103510.0,103500.0,0.27616671]
[1763020510054,0.00124261,103510.0,103500.0,0.27616671]
[1763020511241,0.00024261,103510.0,103500.0,0.27616671]
[1763020512655,0.00024261,103510.0,103500.0,0.25626671]
[1763020513024,0.00024261,103510.0,103500.0,0.27616671]
[1763020513531,0.19325538,103490.0,103470.0,0.01014018]
[1763020513757,0.74762646,103480.0,103470.0,0.00014019]
[1763020513966,0.74762646,103480.0,103470.0,0.02004019]
[1763020514192,0.2435028,103480.0,103470.0,0.03011019]
[1763020514407,0.74081646,103480.0,103470.0,0.05001019]
[1763020515237,0.74762646,103480.0,103470.0,0.03275019]
[1763020515396,0.74862646,103480.0,103470.0,0.02004019]
[1763020515605,0.75543646,103480.0,103470.0,0.00014019]
[1763020515810,0.75543646,103480.0,103470.0,0.02004019]
[1763020516426,0.75643646,103480.0,103470.0,0.02004019]
[1763020516633,0.74962646,103480.0,103470.0,0.00014019]
[1763020516874,0.74962646,103480.0,103470.0,0.02004019]
[1763020517078,0.2455028,103480.0,103470.0,0.02004019]
[1763020517208,0.74962646,103480.0,103470.0,0.02004019]
[1763020517788,0.74962646,103480.0,103470.0,0.01285019]
[1763020518348,0.74962646,103480.0,103470.0,0.03275019]
[1763020519963,0.74962646,103480.0,103470.0,0.00014019]
[1763020520171,0.74962646,103480.0,103470.0,0.04004019]
[1763020520553,0.74962646,103480.0,103470.0,0.00014019]
[1763020521107,0.74962646,103480.0,103470.0,0.02004019]
[1763020521518,0.70620772,103480.0,103470.0,0.02004019]
[1763020521690,0.70620772,103480.0,103470.0,0.03275019]
[1763020522076,0.70620772,103480.0,103470.0,0.05275019]
[1763020522605,0.70620772,103480.0,103470.0,0.03275019]
[1763020523594,0.70620772,103480.0,103470.0,0.05001019]
[1763020523793,0.69939772,103480.0,103470.0,0.05001019]
[1763020524056,0.44733589,103480.0,103470.0,0.28907293]
[1763020524307,0.44733589,103480.0,103470.0,0.26907293]
[1763020524485,0.44733589,103480.0,103470.0,0.28907293]
[1763020524891,0.44733589,103480.0,103470.0,0.09578019]
[1763020525192,0.44733589,103480.0,103470.0,0.26907293]
[1763020525623,0.44733589,103480.0,103470.0,0.24330293]
[1763020525824,0.69939772,103480.0,103470.0,0.05001019]
[1763020526028,0.44733589,103480.0,103470.0,0.24330293]
[1763020526179,0.44733589,103480.0,103470.0,0.26330293]
[1763020526375,0.44733589,103480.0,103470.0,0.07001019]
[1763020526680,0.44733589,103480.0,103470.0,0.26330293]
[1763020526874,0.44733589,103480.0,103470.0,0.28907293]
[1763020527298,0.44733589,103480.0,103470.0,0.09578019]
[1763020527706,0.44733589,103480.0,103470.0,0.24330293]
[1763020527910,0.45301589,103480.0,103470.0,0.03275019]
[1763020528088,0.71075772,103480.0,103470.0,0.00014019]
[1763020528302,0.71075772,103480.0,103470.0,0.02004019]
[1763020529359,0.70507772,103480.0,103470.0,0.02004019]
[1763020529541,0.45301589,103480.0,103470.0,0.02004019]
[1763020530050,0.45301589,103480.0,103470.0,0.04004019]
[1763020530446,0.45301589,103480.0,103470.0,0.02004019]
[1763020530808,0.45301589,103480.0,103470.0,0.04004019]
[1763020530997,0.45301589,103480.0,103470.0,0.21333293]
[1763020531200,0.45301589,103480.0,103470.0,0.24623293]
[1763020531654,0.44733589,103480.0,103470.0,0.26259293]
[1763020531855,0.44733589,103480.0,103470.0,0.24259293]
[1763020532056,0.44733589,103480.0,103470.0,0.26259293]
[1763020532698,0.44733589,103480.0,103470.0,0.04930019]
[1763020532903,0.6393622,103480.0,103470.0,0.04930019]
[1763020533105,0.6450422,103480.0,103470.0,0.01304019]
[1763020533315,0.6450422,103480.0,103470.0,0.03294019]
[1763020533682,0.6450422,103480.0,103470.0,0.02004019]
[1763020534493,0.6450422,103480.0,103470.0,0.04004019]
[1763020534695,0.6450422,103480.0,103470.0,0.02004019]
[1763020535153,0.6507222,103480.0,103470.0,0.02004019]
[1763020535371,0.87276627,103480.0,103470.0,0.02004019]
[1763020536993,0.87276627,103480.0,103470.0,0.04004019]
[1763020537169,0.87276627,103480.0,103470.0,0.02004019]
[1763020537381,0.87276627,103480.0,103470.0,0.04004019]
[1763020537579,0.87276627,103480.0,103470.0,0.02004019]
[1763020537788,0.87276627,103480.0,103470.0,0.04004019]
[1763020539602,0.6450422,103480.0,103470.0,0.21333293]
[1763020539800,0.6450422,103480.0,103470.0,0.24623293]
[1763020540198,0.6393622,103480.0,103470.0,0.26259293]
[1763020540896,0.6393622,103480.0,103470.0,0.30535293]
[1763020541628,0.6450422,103480.0,103470.0,0.28899293]
[1763020542297,0.6393622,103480.0,103470.0,0.30535293]
[1763020543047,0.6450422,103480.0,103470.0,0.30535293]
[1763020543222,0.62304836,103480.0,103470.0,0.30535293]
[1763020543884,0.62304836,103480.0,103470.0,0.28535293]
[1763020544104,0.62304836,103480.0,103470.0,0.28899293]
[1763020545413,0.62304836,103480.0,103470.0,0.06280019]
[1763020545615,0.62872836,103480.0,103470.0,0.06280019]
[1763020546023,0.62872836,103480.0,103470.0,0.08280019]
[1763020546248,0.62304836,103480.0,103470.0,0.08280019]
[1763020546445,0.62304836,103480.0,103470.0,0.06280019]
[1763020547166,0.62304836,103480.0,103470.0,0.25609293]
[1763020547921,0.62304836,103480.0,103470.0,0.08280019]
[1763020548349,0.62872836,103480.0,103470.0,0.06280019]
[1763020548574,0.85077243,103480.0,103470.0,0.04290019]
[1763020548785,0.45544814,103480.0,103470.0,0.25609293]
[1763020549014,0.45544814,103480.0,103470.0,0.27609293]
[1763020549542,0.87076627,103480.0,103470.0,0.06290019]
[1763020549750,0.67749221,103480.0,103470.0,0.25609293]
[1763020549957,0.67749221,103480.0,103470.0,0.27609293]
[1763020550469,0.87076627,103480.0,103470.0,0.27609293]
[1763020550666,0.87076627,103480.0,103470.0,0.23333293]
[1763020550858,0.87076627,103480.0,103470.0,0.27609293]
[1763020551474,0.67749221,103480.0,103470.0,0.27609293]
[1763020551890,0.87076627,103480.0,103470.0,0.23333293]
[1763020552048,0.87076627,103480.0,103470.0,0.27609293]
[1763020552657,0.45544814,103480.0,103470.0,0.27609293]
[1763020553410,0.44976814,103480.0,103470.0,0.27609293]
[1763020553602,0.45544814,103480.0,103470.0,0.27609293]
[1763020553735,0.45544814,103480.0,103470.0,0.25609293]
[1763020553937,0.45544814,103480.0,103470.0,0.27609293]
[1763020555005,0.6487222,103480.0,103470.0,0.23619293]
[1763020555218,0.6487222,103480.0,103470.0,0.27609293]
[1763020556340,0.6487222,103480.0,103470.0,0.08280019]
[1763020557105,0.6487222,103480.0,103470.0,0.06280019]
[1763020557471,0.6487222,103480.0,103470.0,0.08280019]
[1763020557848,0.6487222,103480.0,103470.0,0.06280019]
[1763020558261,0.6487222,103480.0,103470.0,0.08280019]
[1763020559021,0.6487222,103480.0,103470.0,0.02004019]
[1763020559226,0.87076627,103480.0,103470.0,0.06280019]
[1763020559631,0.87076627,103480.0,103470.0,0.02004019]
[1763020559965,0.87076627,103480.0,103470.0,0.06280019]
[1763020560170,0.87076627,103480.0,103470.0,0.00014019]
[1763020560374,1.19376627,103480.0,103470.0,0.00014019]
[1763020560586,1.19376627,103480.0,103470.0,0.06280019]
[1763020562390,1.19376627,103480.0,103470.0,0.04290019]
[1763020562638,1.19376627,103480.0,103470.0,0.06280019]
[1763020563535,0.52763406,103480.0,103470.0,0.04290019]
[1763020563739,0.9717222,103480.0,103470.0,0.06280019]
[1763020565026,1.19376627,103480.0,103470.0,0.06280019]
[1763020567104,1.19376627,103480.0,103470.0,0.04290019]
[1763020567265,1.19376627,103480.0,103470.0,0.08280019]
[1763020567623,1.23718501,103480.0,103470.0,0.00014019]
[1763020567954,1.23718501,103480.0,103470.0,0.06280019]
[1763020569154,1.23718501,103480.0,103450.0,0.00161988]
[1763020569155,0.19331142,103460.0,103450.0,0.00161988]
[1763020569392,0.00824,103460.0,103450.0,0.42972406]
[1763020569553,0.20155142,103460.0,103450.0,0.22481999]
[1763020569756,0.42359549,103460.0,103450.0,0.24481999]
[1763020569999,0.42359549,103460.0,103450.0,0.22481999]
[1763020570319,0.00824,103460.0,103450.0,0.24481999]
[1763020570545,0.00824,103460.0,103450.0,0.24581999]
[1763020570776,0.20155142,103460.0,103450.0,0.24581999]
[1763020570968,0.00824,103460.0,103450.0,0.24581999]
[1763020571169,0.20155142,103460.0,103450.0,0.24581999]
[1763020571654,0.19743142,103460.0,103450.0,0.24927999]
[1763020571885,0.00412,103460.0,103450.0,0.24927999]
[1763020572086,0.19743142,103460.0,103450.0,0.26927999]
[1763020572289,0.49356403,103460.0,103450.0,0.07594988]
[1763020572405,0.49356403,103460.0,103450.0,0.24581999]
[1763020573329,0.49356403,103460.0,103450.0,0.24927999]
[1763020573330,0.30025261,103460.0,103450.0,0.24927999]
[1763020573506,0.49356403,103460.0,103450.0,0.26927999]
[1763020574177,0.49356403,103460.0,103450.0,0.24581999]
[1763020574386,0.49768403,103460.0,103450.0,0.24581999]
[1763020574595,0.49768403,103460.0,103450.0,0.05248988]
[1763020574769,0.79793664,103460.0,103450.0,0.00261988]
[1763020576535,0.20567142,103460.0,103450.0,0.00261988]
[1763020576907,0.50180403,103460.0,103450.0,0.02261988]
[1763020578230,1.12093664,103460.0,103450.0,0.00261988]
[1763020579706,1.12093664,103460.0,103450.0,0.04533988]
[1763020580670,0.82068403,103460.0,103450.0,0.04533988]
[1763020580865,0.82068403,103460.0,103450.0,0.25866999]
[1763020581168,0.82068403,103460.0,103450.0,0.27139999]
[1763020581368,0.82068403,103460.0,103450.0,0.06533988]
[1763020581748,0.82480403,103460.0,103450.0,0.04533988]
[1763020581955,1.12093664,103460.0,103450.0,0.04533988]
[1763020583422,1.12093664,103460.0,103450.0,0.06533988]
[1763020583836,1.12093664,103460.0,103450.0,0.04533988]
[1763020584245,1.16435538,103460.0,103450.0,0.04533988]
[1763020588170,1.16435538,103460.0,103450.0,0.04433988]
[1763020588402,1.16535538,103460.0,103450.0,0.04433988]
[1763020588598,1.16635538,103460.0,103450.0,0.04433988]
[1763020589367,1.40885538,103460.0,103450.0,0.04433988]
[1763020590969,1.70498799,103460.0,103430.0,0.0004]
[1763020591176,0.85926015,103440.0,103430.0,0.00044665]
[1763020591355,0.85926015,103440.0,103430.0,0.04316665]
[1763020591583,1.15875276,103440.0,103430.0,0.04316665]
[1763020591708,1.15875276,103440.0,103430.0,0.04365241]
[1763020592148,1.15875276,103440.0,103430.0,0.04465241]
[1763020593001,1.15875276,103440.0,103430.0,0.04565241]
[1763020594574,0.56648754,103440.0,103430.0,0.04565241]
[1763020594785,1.15875276,103440.0,103430.0,0.04565241]
[1763020595421,1.15875276,103440.0,103430.0,0.06565241]
[1763020595824,1.15875276,103440.0,103430.0,0.04565241]
[1763020596257,1.15875276,103440.0,103430.0,0.06565241]
[1763020596449,1.15875276,103440.0,103430.0,0.04565241]
[1763020596652,1.15875276,103440.0,103390.0,0.0004]
[1763020596653,0.323,103410.0,103390.0,0.0004]
[1763020596892,0.81267765,103410.0,103390.0,0.23053073]
[1763020597091,0.51654504,103410.0,103400.0,0.02863]
[1763020597442,0.81267765,103410.0,103400.0,0.02863]
[1763020598365,0.81267765,103410.0,103400.0,0.02963]
[1763020598573,0.81267765,103410.0,103400.0,0.03063]
[1763020599109,0.81267765,103410.0,103400.0,0.01434]
[1763020599947,0.84170709,103410.0,103400.0,0.01434]
[1763020600614,0.84170709,103410.0,103400.0,0.002]
[1763020602061,0.84170709,103410.0,103400.0,0.00272893]
[1763020603773,1.18125844,103410.0,103400.0,0.00272893]
[1763020604641,1.18125844,103410.0,103400.0,0.00072893]
[1763020605289,1.18125844,103410.0,103400.0,0.04344893]
[1763020606965,0.19342359,103400.0,103390.0,0.0004]
[1763020607260,0.19342359,103400.0,103390.0,0.04312]
[1763020607261,1.12524016,103400.0,103390.0,0.04312]
[1763020607450,0.78568881,103400.0,103390.0,0.00064304]
[1763020607683,0.79802881,103400.0,103390.0,0.00064304]
[1763020608028,0.79802881,103400.0,103390.0,0.00164304]
[1763020608427,0.79802881,103400.0,103390.0,0.00064304]
[1763020609532,0.84144755,103400.0,103390.0,0.00064304]
[1763020609975,1.08394755,103400.0,103390.0,0.00064304]
[1763020612173,0.44826359,103400.0,103390.0,0.00064304]
[1763020612641,1.04052881,103400.0,103390.0,0.00064304]
[1763020613216,0.5164423,103390.0,103380.0,0.00384304]
[1763020613392,0.81257491,103390.0,103380.0,0.00384304]
[1763020613801,0.84160986,103390.0,103380.0,0.19730405]
[1763020614003,0.64816756,103390.0,103380.0,0.19730405]
[1763020614249,0.84160986,103390.0,103380.0,0.19730405]
[1763020614453,0.84160986,103390.0,103380.0,0.19830405]
[1763020615252,0.64816756,103390.0,103380.0,0.19830405]
[1763020615600,0.84160986,103390.0,103380.0,0.19830405]
[1763020617445,0.84160986,103390.0,103380.0,0.23718101]
[1763020617692,0.64816756,103390.0,103380.0,0.23718101]
[1763020618165,0.84160986,103390.0,103380.0,0.23718101]
[1763020618825,0.84160986,103390.0,103380.0,0.23742407]
[1763020620376,0.84160986,103390.0,103380.0,0.04396306]
[1763020620633,0.84160986,103390.0,103380.0,0.23742407]
[1763020620862,0.84160986,103390.0,103380.0,0.04396306]
[1763020621603,0.84160986,103390.0,103380.0,0.23742407]
[1763020621825,0.84160986,103390.0,103380.0,0.04396306]
[1763020622049,0.84160986,103390.0,103380.0,0.23742407]
[1763020623875,0.84160986,103390.0,103380.0,0.04396306]
[1763020624306,0.84160986,103390.0,103380.0,0.23742407]
[1763020624746,0.84160986,103390.0,103380.0,0.04396306]
[1763020625847,0.84160986,103390.0,103380.0,0.23742407]
[1763020627212,0.84160986,103390.0,103380.0,0.04396306]